bitfinex-derivatives/quotes_SOLF0:USTF0_20250818
["timestamp","ask_amount","ask_price","bid_price","bid_amount"]
[1755547909838,3.16,183.47,183.45,0.04050041]
[1755547910440,185.22,183.51,183.45,3.15050041]
[1755547910641,3.83406336,183.5,183.46,3.11]
[1755547910842,185.22,183.51,183.47,3.11]
[1755547911142,6.99389866,183.5,183.47,3.11]
[1755547911346,3.16,183.5,183.47,3.11]
[1755547913647,3.09,183.49,183.46,5.4482]
[1755547913947,3.09,183.49,183.46,3.13]
[1755547917351,3.09,183.5,183.47,3.13]
[1755547917556,3.83921304,183.49,183.47,3.13]
[1755547917857,3.09,183.5,183.47,3.13]
[1755547919651,3.84200202,183.49,183.47,3.13]
[1755547919853,3.09,183.5,183.47,3.13]
[1755547920157,3.84200491,183.49,183.48,3.13]
[1755547920556,3.09,183.47,183.45,0.04050041]
[1755547920761,3.09,183.45,183.36,3.13]
[1755547920946,3.09,183.43,183.36,3.13]
[1755547921149,139.0013644,183.42,183.36,3.13]
[1755547921349,3.84207021,183.41,183.36,3.13]
[1755547921550,135.16,183.42,183.36,3.13]
[1755547921551,135.16,183.42,183.37,5.4508]
[1755547921754,135.16,183.42,183.39,3.13]
[1755547922055,0.03438103,183.41,183.39,3.13]
[1755547922252,0.03438103,183.41,183.4,3.13]
[1755547922656,135.16,183.46,183.4,3.13]
[1755547922853,6.93378593,183.45,183.41,3.13]
[1755547923055,0.03612313,183.42,183.41,3.13]
[1755547923555,0.03612313,183.42,183.41,6.96001937]
[1755547924048,0.03612313,183.42,183.39,3.13]
[1755547924250,0.03612313,183.42,183.4,3.13]
[1755547924565,0.03612313,183.42,183.41,3.13]
[1755547925659,135.16,183.46,183.41,3.13]
[1755547925856,135.16,183.46,183.43,3.83001937]
[1755547926058,3.09,183.48,183.45,3.13]
[1755547926952,3.09,183.53,183.46,3.83001937]
[1755547927162,3.09,183.53,183.45,3.16568171]
[1755547927163,3.09,183.51,183.45,0.03568171]
[1755547927368,3.09,183.49,183.41,3.83001937]
[1755547927562,3.84643054,183.48,183.41,6.96001937]
[1755547927766,3.84643054,183.47,183.46,0.0397713]
[1755547928967,3.09,183.52,183.46,3.1697713]
[1755547929178,11.34586634,183.51,183.47,3.13]
[1755547929473,3.84640024,183.5,183.47,6.96001937]
[1755547929670,3.84640024,183.49,183.47,6.96001937]
[1755547929869,3.09,183.51,183.47,12.40781937]
[1755547930067,3.84662159,183.5,183.48,3.13]
[1755547930267,3.84662159,183.49,183.48,3.13]
[1755547930567,138.23,183.53,183.49,3.13]
[1755547930771,11.34665135,183.52,183.47,3.83001937]
[1755547930974,3.84671274,183.51,183.48,3.13]
[1755547931663,3.84671274,183.51,183.48,8.5776]
[1755547933076,3.84671274,183.51,183.5,3.13]
[1755547933373,56.00606975,183.59,183.5,3.83001937]
[1755547933560,7.02009974,183.58,183.53,3.83001937]
[1755547933766,7.49963138,183.57,183.53,6.96001937]
[1755547933966,4.40963138,183.56,183.53,6.96001937]
[1755547934178,4.40963138,183.56,183.54,0.04074744]
[1755547934376,3.09,183.56,183.54,0.04074744]
[1755547935271,3.09,183.58,183.54,5.48654744]
[1755547935466,4.40713479,183.57,183.54,0.04074744]
[1755547935661,3.09,183.56,183.54,0.04074744]
[1755547936668,185.12,183.59,183.54,8.61654744]
[1755547936974,7.49596269,183.58,183.54,8.61654744]
[1755547937170,3.09,183.58,183.54,8.61654744]
[1755547938075,3.09,183.57,183.54,3.17074744]
[1755547938375,3.09,183.57,183.54,0.04074744]
[1755547938674,3.09,183.56,183.54,0.04074744]
[1755547939272,185.12,183.59,183.54,0.04074744]
[1755547939475,3.09,183.56,183.54,0.04074744]
[1755547941777,3.09,183.56,183.54,5.48664744]
[1755547941971,188.21,183.59,183.54,8.61664744]
[1755547942180,3.1,183.57,183.54,5.48664744]
[1755547942681,3.1,183.57,183.54,8.35664744]
[1755547946179,3.1,183.58,183.55,5.4454]
[1755547946472,138.22,183.59,183.54,0.04074744]
[1755547946673,3.1,183.58,183.55,2.87]
[1755547947579,3.1,183.58,183.55,8.3155]
[1755547948076,135.12,183.59,183.55,5.4455]
[1755547948279,135.12,183.59,183.56,8.3153]
[1755547948666,20.0,183.6,183.58,2.87]
[1755547948868,20.0,183.6,183.59,6.70001937]
[1755547950272,135.0,183.63,183.6,2.87]
[1755547950477,50.0,183.64,183.61,2.87]
[1755547950776,3.1,183.66,183.62,6.70001937]
[1755547950978,3.1,183.66,183.63,2.87]
[1755547951176,134.98,183.7,183.65,3.83001937]
[1755547951482,3.1,183.69,183.65,3.83001937]
[1755547951777,138.08,183.7,183.65,3.83001937]
[1755547951983,134.98,183.7,183.65,3.86678584]
[1755547952172,3.1,183.68,183.65,3.86678584]
[1755547952377,3.1,183.68,183.65,6.73678584]
[1755547953780,3.1,183.69,183.65,0.03676647]
[1755547953983,134.98,183.7,183.66,2.87]
[1755547954176,138.08,183.7,183.66,2.87]
[1755547954781,3.1,183.69,183.65,3.86678584]
[1755547955183,134.98,183.7,183.65,0.03676647]
[1755547955479,3.1,183.69,183.65,0.03676647]
[1755547955885,3.1,183.67,183.65,0.03676647]
[1755547956081,134.98,183.7,183.65,0.03676647]
[1755547956389,3.1,183.69,183.65,0.03676647]
[1755547956780,50.0,183.68,183.65,0.03676647]
[1755547956985,6.90251463,183.67,183.57,2.87]
[1755547957187,6.90251463,183.66,183.57,2.87]
[1755547957486,3.1,183.64,183.57,2.87]
[1755547957880,3.1,183.64,183.56,3.83001937]
[1755547958481,0.0371382,183.62,183.56,3.83001937]
[1755547958888,3.1,183.6,183.56,3.83001937]
[1755547959386,3.1,183.6,183.56,6.70001937]
[1755547959582,3.1,183.59,183.53,3.83001937]
[1755547960788,3.1,183.59,183.53,9.27611937]
[1755547961088,3.1,183.57,183.54,2.87]
[1755547961485,3.1,183.57,183.53,3.83001937]
[1755547961789,3.1,183.57,183.53,6.70001937]
[1755547961980,3.1,183.57,183.54,2.87]
[1755547962980,0.03613719,183.58,183.54,2.87]
[1755547963186,3.13613719,183.58,183.54,2.87]
[1755547963591,3.1,183.64,183.57,2.87]
[1755547963786,50.0,183.66,183.61,6.70001937]
[1755547963990,3.1,183.65,183.61,6.70001937]
[1755547964591,53.1,183.69,183.61,6.70001937]
[1755547965080,3.1,183.69,183.63,5.4432]
[1755547965582,3.1,183.69,183.62,5.4434]
[1755547966889,3.1,183.69,183.61,12.17837212]
[1755547967094,3.1,183.69,183.61,9.30837212]
[1755547967791,3.1,183.69,183.62,5.4435]
[1755547967987,3.1,183.69,183.61,6.73467212]
[1755547969090,3.1,183.69,183.61,3.86467212]
[1755547969291,3.1,183.67,183.61,3.86467212]
[1755547970591,134.92,183.7,183.61,3.86467212]
[1755547970795,3.81120152,183.69,183.62,2.87]
[1755547971087,134.92,183.7,183.62,2.87]
[1755547971291,134.92,183.7,183.64,5.4427]
[1755547971484,3.1,183.69,183.62,2.87]
[1755547971690,3.1,183.67,183.59,3.83001937]
[1755547971998,3.1,183.67,183.64,0.03592635]
[1755547972186,6.86198418,183.66,183.64,0.03592635]
[1755547972491,3.05,183.65,183.64,0.03592635]
[1755547973492,3.05,183.65,183.57,2.87]
[1755547974792,0.03667945,183.63,183.57,2.87]
[1755547977702,3.08667945,183.63,183.54,2.97]
[1755547977901,3.05,183.61,183.54,2.97]
[1755547978697,0.03482537,183.59,183.54,2.97]
[1755547978999,3.05,183.58,183.54,2.97]
[1755547979201,0.03482537,183.59,183.51,2.97]
[1755547979694,0.03482537,183.59,183.53,5.4459]
[1755547979998,0.03482537,183.59,183.53,2.97]
[1755547980299,0.03482537,183.59,183.55,2.97]
[1755547980495,0.03482537,183.59,183.52,2.97]
[1755547980496,3.05,183.58,183.52,2.97]
[1755547980801,0.03482537,183.59,183.52,6.80001937]
[1755547980995,0.03482537,183.59,183.53,2.97]
[1755547981399,0.03482537,183.59,183.56,2.97]
[1755547981596,0.03482537,183.59,183.53,2.97]
[1755547982392,0.03482537,183.59,183.57,2.97]
[1755547983000,0.03482537,183.59,183.58,2.97]
[1755547985601,0.03482537,183.59,183.58,8.4147]
[1755547988003,0.03482537,183.59,183.58,5.4447]
[1755547988307,0.03482537,183.59,183.58,8.4147]
[1755547989595,0.03482537,183.59,183.58,12.24471937]
[1755547990508,184.84,183.66,183.64,5.4427]
[1755547990800,134.84,183.66,183.61,3.83001937]
[1755547991002,137.89,183.66,183.62,2.97]
[1755547991313,3.05,183.7,183.62,2.97]
[1755547991605,3.05,183.7,183.61,3.83001937]
[1755547991606,3.8271371,183.69,183.65,2.97]
[1755547991802,3.8271371,183.68,183.66,5.442]
[1755547992007,3.05,183.69,183.66,5.442]
[1755547992303,50.0,183.71,183.65,2.97]
[1755547992304,3.82793342,183.68,183.67,5.442]
[1755547994200,3.82793342,183.68,183.66,5.4422]
[1755547994406,3.05,183.67,183.64,0.03634781]
[1755547994608,50.0,183.71,183.64,3.00634781]
[1755547994810,6.87827313,183.7,183.66,5.4421]
[1755547995009,6.87827313,183.69,183.66,5.4421]
[1755547995209,3.05,183.69,183.66,5.4421]
[1755547995710,3.05,183.68,183.66,5.4421]
[1755547995906,3.05,183.68,183.65,5.4425]
[1755547996304,3.05,183.68,183.64,6.83636718]
[1755547996509,3.05,183.68,183.66,5.4423]
[1755547996902,3.05,183.7,183.66,5.4423]
[1755547997114,6.87760009,183.69,183.67,5.442]
[1755547997411,3.05,183.69,183.67,5.442]
[1755547999021,53.05,183.71,183.68,5.4417]
[1755547999208,3.82728907,183.7,183.68,5.4417]
[1755547999413,53.05,183.71,183.68,5.4417]
[1755547999712,6.87708282,183.7,183.68,5.4417]
[1755547999917,3.05,183.7,183.68,5.4417]
[1755548000717,50.0,183.71,183.68,2.97]
[1755548001215,134.82,183.73,183.69,5.4412]
[1755548001414,6.87093301,183.72,183.69,5.4412]
[1755548001615,3.05,183.72,183.69,5.4412]
[1755548002209,3.05,183.72,183.69,8.5912]
[1755548002607,3.05,183.72,183.7,5.4411]
[1755548003510,3.05,183.72,183.69,8.5913]
[1755548003912,3.05,183.72,183.68,5.4416]
[1755548004114,3.05,183.72,183.66,6.98001937]
[1755548004518,134.82,183.73,183.7,8.5909]
[1755548004815,2.96,183.72,183.67,3.15]
[1755548005114,2.96,183.72,183.68,3.15]
[1755548005313,2.96,183.72,183.69,3.15]
[1755548006314,2.96,183.72,183.69,5.4412]
[1755548006525,2.96,183.72,183.69,8.5912]
[1755548007019,134.82,183.73,183.71,3.15]
[1755548007415,134.82,183.73,183.7,3.15]
[1755548007721,134.82,183.73,183.69,3.83001937]
[1755548007911,134.82,183.73,183.72,3.15]
[1755548008112,52.96,183.76,183.72,3.15]
[1755548008419,52.96,183.76,183.72,8.5905]
[1755548008621,50.0,183.76,183.72,8.5905]
[1755548008820,2.96,183.75,183.72,3.15]
[1755548009118,50.0,183.76,183.7,3.15]
[1755548009318,50.0,183.76,183.73,5.4401]
[1755548009521,2.96,183.76,183.73,5.4401]
[1755548009712,134.72,183.77,183.73,5.4401]
[1755548009914,2.96,183.76,183.73,5.4401]
[1755548010115,2.96,183.75,183.73,5.4401]
[1755548011121,2.96,183.76,183.68,3.83001937]
[1755548011319,2.96,183.76,183.68,6.98001937]
[1755548011712,2.96,183.76,183.68,3.15]
[1755548011912,3.81239308,183.75,183.68,3.15]
[1755548012224,2.96,183.74,183.68,8.5916]
[1755548012414,2.96,183.72,183.68,8.5916]
[1755548012717,2.96,183.71,183.65,6.98001937]
[1755548013520,2.96,183.7,183.67,5.4418]
[1755548013818,134.7,183.73,183.65,6.98001937]
[1755548013819,134.7,183.73,183.65,3.83001937]
[1755548014029,2.96,183.69,183.66,3.15]
[1755548014216,2.96,183.72,183.65,6.98001937]
[1755548015119,134.7,183.73,183.66,3.15]
[1755548015318,134.7,183.73,183.69,5.4413]
[1755548015520,2.96,183.72,183.69,5.4413]
[1755548016128,2.96,183.72,183.69,8.5913]
[1755548017320,2.96,183.72,183.68,5.4416]
[1755548017627,134.7,183.73,183.68,5.4416]
[1755548017825,2.96,183.7,183.68,5.4416]
[1755548018020,2.96,183.7,183.69,5.4414]
[1755548018215,134.7,183.73,183.69,5.4414]
[1755548018416,2.96,183.72,183.69,5.4414]
[1755548018727,2.96,183.72,183.69,8.5914]
[1755548019326,2.96,183.71,183.69,5.4414]
[1755548020424,137.66,183.73,183.69,8.5914]
[1755548020616,2.96,183.72,183.69,8.5914]
[1755548022225,2.96,183.72,183.69,5.4414]
[1755548024025,134.7,183.73,183.68,5.4416]
[1755548024224,2.96,183.72,183.63,3.15]
[1755548024629,2.96,183.72,183.65,5.4424]
[1755548025023,2.96,183.72,183.63,3.15]
[1755548025223,2.96,183.72,183.66,5.4423]
[1755548025426,2.96,183.72,183.63,3.15]
[1755548025636,2.96,183.72,183.65,5.4425]
[1755548026019,2.96,183.72,183.63,3.15]
[1755548026224,2.96,183.72,183.66,5.4422]
[1755548026920,2.96,183.72,183.65,5.4425]
[1755548027825,3.81727979,183.71,183.65,5.4425]
[1755548028027,2.96,183.69,183.64,5.4428]
[1755548028229,3.83001937,183.72,183.63,3.15]
[1755548028423,3.8186387,183.71,183.63,3.15]
[1755548028625,2.96,183.66,183.63,3.15]
[1755548028838,3.83001937,183.72,183.59,6.98001937]
[1755548028839,2.96,183.67,183.59,6.98001937]
[1755548029337,2.96,183.67,183.6,3.15]
[1755548029530,134.66,183.68,183.62,3.83001937]
[1755548029730,134.66,183.69,183.64,3.15]
[1755548029925,137.62,183.69,183.65,3.15]
[1755548030131,137.62,183.69,183.66,3.15]
[1755548031430,50.0,183.74,183.67,3.15]
[1755548031632,141.44120721,183.73,183.67,3.15]
[1755548031831,3.82120721,183.72,183.67,8.5919]
[1755548032034,6.78120721,183.71,183.67,8.5919]
[1755548032233,2.96,183.71,183.67,8.5919]
[1755548032836,2.99,183.72,183.65,3.83001937]
[1755548033042,3.82145486,183.71,183.65,3.83001937]
[1755548033230,2.99,183.69,183.65,3.83001937]
[1755548033432,2.99,183.69,183.66,2.97]
[1755548034139,2.99,183.69,183.66,8.4121]
[1755548034635,2.99,183.72,183.64,5.4429]
[1755548034836,3.82474985,183.71,183.64,5.4429]
[1755548035041,6.81474985,183.7,183.64,5.4429]
[1755548035337,2.99,183.68,183.65,5.4426]
[1755548035733,2.99,183.71,183.62,2.97]
[1755548036042,2.99,183.69,183.58,2.97]
[1755548036235,2.99,183.67,183.61,5.4436]
[1755548036437,2.99,183.65,183.61,8.4136]
[1755548037240,137.63,183.68,183.61,8.4136]
[1755548037542,3.82451214,183.67,183.61,8.4136]
[1755548037741,2.99,183.65,183.61,8.4136]
[1755548037950,2.99,183.64,183.61,2.97]
[1755548038239,2.99,183.67,183.61,2.97]
[1755548038442,6.81455682,183.66,183.62,2.97]
[1755548038645,3.82455682,183.65,183.62,2.97]
[1755548038939,2.99,183.65,183.62,2.97]
[1755548039140,2.99,183.67,183.58,2.97]
[1755548039340,3.82382875,183.66,183.59,5.4442]
[1755548039533,3.82382875,183.65,183.58,2.97]
[1755548039735,2.99,183.67,183.58,2.97]
[1755548039937,3.82313908,183.66,183.58,2.97]
[1755548040243,2.99,183.64,183.61,2.97]
[1755548040542,2.99,183.64,183.58,2.97]
[1755548040743,2.99,183.64,183.59,5.4444]
[1755548041045,2.99,183.64,183.6,2.97]
[1755548043542,2.99,183.63,183.57,6.80001937]
[1755548043945,3.82053845,183.62,183.54,6.80001937]
[1755548044246,2.99,183.61,183.55,5.4454]
[1755548044747,2.99,183.61,183.54,12.24581937]
[1755548045444,2.99,183.61,183.55,5.4455]
[1755548046948,2.99,183.61,183.56,0.0373374]
[1755548047140,2.99,183.6,183.56,3.0073374]
[1755548047541,2.99,183.6,183.57,2.97]
[1755548048545,2.99,183.59,183.56,3.0073374]
[1755548052452,2.99,183.59,183.57,2.97]
[1755548052653,50.0,183.65,183.58,2.97]
[1755548052951,2.99,183.62,183.58,2.97]
[1755548053247,50.0,183.65,183.57,6.80001937]
[1755548053552,50.0,183.65,183.58,2.97]
[1755548054443,52.99,183.65,183.57,3.83001937]
[1755548054650,52.99,183.65,183.62,2.97]
[1755548054850,2.99,183.65,183.62,2.97]
[1755548055250,2.99,183.64,183.6,5.444]
[1755548055446,2.99,183.64,183.62,0.04131625]
[1755548055644,2.99,183.63,183.62,0.04131625]
[1755548056348,2.99,183.66,183.62,3.01131625]
[1755548057347,2.99,183.66,183.63,2.97]
[1755548057548,137.63,183.68,183.64,2.97]
[1755548057750,2.99,183.67,183.64,2.97]
[1755548059153,52.99,183.69,183.65,2.97]
[1755548059653,2.99,183.68,183.65,2.97]
[1755548059855,2.99,183.67,183.64,2.97]
[1755548060450,50.0,183.69,183.63,9.27311937]
[1755548060652,2.99,183.67,183.63,9.27311937]
[1755548060854,2.99,183.67,183.63,12.24311937]
[1755548061048,2.99,183.67,183.64,8.4128]
[1755548061249,52.99,183.69,183.65,2.97]
[1755548061445,50.0,183.69,183.63,3.83001937]
[1755548061644,2.99,183.71,183.64,2.97]
[1755548062356,2.99,183.71,183.66,0.03952934]
[1755548062547,50.0,183.73,183.67,3.04]
[1755548063053,50.0,183.73,183.66,3.86954871]
[1755548063247,50.0,183.73,183.67,3.04]
[1755548064350,50.0,183.73,183.68,5.4416]
[1755548064658,3.01,183.72,183.68,8.4816]
[1755548066563,3.01,183.72,183.69,3.04]
[1755548066755,53.01,183.73,183.69,3.04]
[1755548067159,3.01,183.73,183.69,8.4814]
[1755548067459,3.01,183.73,183.7,3.04]
[1755548068951,3.01,183.74,183.68,5.4416]
[1755548069261,3.8114167,183.73,183.66,0.03952934]
[1755548069560,255.95939698,183.75,183.66,0.03952934]
[1755548069561,6.8214167,183.72,183.66,0.03952934]
[1755548069760,3.01,183.71,183.66,0.03952934]
[1755548069960,3.01,183.69,183.66,0.03952934]
[1755548070147,3.01,183.68,183.66,0.03952934]
[1755548071555,50.0,183.74,183.66,0.03952934]
[1755548071747,3.01,183.69,183.66,0.03952934]
[1755548072461,50.0,183.73,183.66,0.03952934]
[1755548072760,3.01,183.69,183.66,0.03952934]
[1755548072959,50.0,183.73,183.66,0.03952934]
[1755548073157,3.01,183.67,183.66,0.03952934]
[1755548076562,3.01,183.68,183.66,0.03952934]
[1755548080169,3.01,183.67,183.66,0.03952934]
[1755548084366,3.01,183.69,183.66,3.07952934]
[1755548084766,134.5,183.68,183.66,3.07952934]
[1755548085469,50.0,183.71,183.67,3.04]
[1755548085668,184.48,183.71,183.67,3.04]
[1755548085971,3.01,183.69,183.66,0.03952934]
[1755548086364,3.01,183.69,183.66,3.07952934]
[1755548086669,3.01,183.69,183.66,0.03952934]
[1755548086872,3.01,183.7,183.66,0.03952934]
[1755548087168,184.48,183.71,183.66,0.03952934]
[1755548087368,3.81274164,183.7,183.66,0.03952934]
[1755548087557,3.01,183.68,183.66,0.03952934]
[1755548087757,184.48,183.71,183.66,0.03952934]
[1755548087957,3.01,183.67,183.66,0.03952934]
[1755548088159,3.01,183.7,183.66,0.03952934]
[1755548088469,3.01,183.69,183.66,0.03952934]
[1755548088858,184.48,183.71,183.66,0.03952934]
[1755548089166,3.81289066,183.7,183.67,3.04]
[1755548089370,184.48,183.71,183.67,3.04]
[1755548089572,6.82336291,183.7,183.66,5.48172934]
[1755548089869,3.01,183.7,183.66,0.03952934]
[1755548090171,3.01,183.69,183.66,0.03952934]
[1755548090370,3.01,183.68,183.66,0.03952934]
[1755548091372,3.01,183.67,183.66,0.03952934]
[1755548091963,137.47,183.67,183.66,0.03952934]
[1755548094575,134.46,183.67,183.66,0.03952934]
[1755548094779,134.46,183.67,183.66,3.08952934]
[1755548097077,50.0,183.71,183.66,3.08952934]
[1755548097281,138.28520034,183.7,183.67,3.05]
[1755548097577,134.46,183.7,183.69,3.05]
[1755548097775,138.28656823,183.7,183.69,3.05]
[1755548098175,134.46,183.7,183.69,3.05]
[1755548099282,121.35939698,183.75,183.68,3.83001937]
[1755548099478,138.26714236,183.74,183.68,6.88001937]
[1755548099677,3.82714236,183.73,183.69,3.05]
[1755548099983,3.82714236,183.73,183.71,3.05]
[1755548100176,134.44,183.74,183.68,3.83001937]
[1755548100380,134.44,183.74,183.71,8.4906]
[1755548100575,134.44,183.74,183.68,3.83001937]
[1755548100886,134.44,183.74,183.71,3.05]
[1755548101381,3.01,183.7,183.69,0.03903593]
[1755548101684,141.27843717,183.7,183.69,0.03903593]
[1755548101884,3.82843717,183.7,183.69,3.08903593]
[1755548102084,3.01,183.79,183.7,3.05]
[1755548102278,145.59818069,183.77,183.7,3.05]
[1755548102474,135.32796794,183.8,183.73,3.05]
[1755548102475,138.24783659,183.76,183.73,3.05]
[1755548102681,134.42,183.76,183.74,3.05]
[1755548102986,3.01,183.8,183.75,3.83001937]
[1755548103187,138.2478894,183.79,183.76,3.05]
[1755548103388,3.01,183.85,183.78,6.88001937]
[1755548103688,141.25472003,183.84,183.8,5.4381]
[1755548103987,3.82472003,183.83,183.8,8.4881]
[1755548104193,137.43,183.84,183.8,0.03710809]
[1755548104194,134.42,183.84,183.8,0.03710809]
[1755548104389,6.83124969,183.83,183.8,0.03710809]
[1755548104685,3.01,183.83,183.8,0.03710809]
[1755548105284,3.01,183.83,183.73,6.88001937]
[1755548105485,3.01,183.81,183.73,6.88001937]
[1755548105678,3.8186637,183.8,183.73,6.88001937]
[1755548105879,3.01,183.79,183.7,3.83001937]
[1755548106180,3.01,183.77,183.7,3.83001937]
[1755548106379,134.4,183.76,183.7,3.83001937]
[1755548106684,0.03745811,183.75,183.7,3.83001937]
[1755548106888,0.03745811,183.75,183.71,3.05]
[1755548107285,3.04745811,183.75,183.71,3.05]
[1755548107486,3.01,183.73,183.7,3.83001937]
[1755548107888,3.01,183.73,183.67,6.88001937]
[1755548109497,3.01,183.73,183.65,3.83001937]
[1755548109697,3.01,183.73,183.65,9.27241937]
[1755548110097,3.01,183.73,183.65,3.83001937]
[1755548110395,3.04760985,183.71,183.65,3.83001937]
[1755548110595,134.38,183.7,183.65,3.83001937]
[1755548110895,3.01,183.69,183.65,3.83001937]
[1755548111095,3.01,183.68,183.65,3.83001937]
[1755548111294,3.01,183.68,183.64,3.05]
[1755548112201,3.01,183.69,183.62,3.83001937]
[1755548112993,0.03675644,183.67,183.62,3.83001937]
[1755548113198,3.01,183.66,183.62,3.83001937]
[1755548114402,3.01,183.66,183.53,365.7]
[1755548114708,3.01,183.64,183.55,3.83001937]
[1755548114907,3.01,183.64,183.55,9.27541937]
[1755548114908,137.41,183.64,183.55,9.27541937]
[1755548115203,0.03910555,183.61,183.54,3.05]
[1755548117908,0.03910555,183.61,183.54,8.4958]
[1755548119013,3.01,183.6,183.53,3.83001937]
[1755548119212,0.03910555,183.61,183.56,3.83001937]
[1755548119510,0.03910555,183.61,183.57,3.05]
[1755548119706,134.4,183.64,183.57,3.05]
[1755548119907,0.03750714,183.6,183.57,3.05]
[1755548120312,0.03750714,183.6,183.57,8.4949]
[1755548121112,0.03750714,183.6,183.58,3.05]
[1755548121510,3.04750714,183.6,183.56,9.27521937]
[1755548121710,3.04750714,183.6,183.56,12.32521937]
[1755548122211,3.04750714,183.6,183.56,6.88001937]
[1755548122404,3.08,183.59,183.53,6.75001937]
[1755548122815,3.08,183.62,183.56,5.445]
[1755548123013,3.08,183.62,183.55,2.92]
[1755548123212,0.03695964,183.58,183.53,3.83001937]
[1755548123412,0.03695964,183.58,183.56,2.92]
[1755548123614,0.03695964,183.58,183.57,2.92]
[1755548123816,0.03695964,183.58,183.57,8.365]
[1755548126820,0.03695964,183.58,183.53,3.83001937]
[1755548126821,0.03695964,183.58,183.53,6.75001937]
[1755548127022,3.08,183.56,183.53,2.92]
[1755548127320,3.11695964,183.58,183.53,5.4459]
[1755548127719,3.11695964,183.58,183.54,5.4458]
[1755548127920,3.11695964,183.58,183.51,2.92]
[1755548128222,0.03695964,183.58,183.51,2.92]
[1755548128410,0.03695964,183.58,183.55,5.4455]
[1755548128722,3.08,183.57,183.51,2.92]
[1755548129120,0.03695964,183.58,183.51,2.92]
[1755548130019,0.03695964,183.58,183.55,2.92]
[1755548130221,3.11695964,183.58,183.55,2.92]
[1755548130622,3.11695964,183.58,183.55,8.3655]
[1755548131221,3.11695964,183.58,183.54,5.4458]
[1755548132323,3.11695964,183.58,183.55,5.4455]
[1755548133321,3.11695964,183.58,183.54,8.3657]
[1755548133518,0.03695964,183.58,183.54,2.92]
[1755548133918,0.03695964,183.58,183.53,3.83001937]
[1755548134122,0.03695964,183.58,183.57,5.445]
[1755548134322,0.03695964,183.58,183.57,8.365]
[1755548140636,3.08,183.7,183.57,2.92]
[1755548140931,3.08,183.7,183.62,3.83001937]
[1755548140932,137.54,183.7,183.62,3.83001937]
[1755548141431,3.08,183.69,183.65,5.4425]
[1755548141629,3.08,183.68,183.65,5.4425]
[1755548141825,3.08,183.68,183.65,5.48037159]
[1755548144536,3.08,183.69,183.65,0.03787159]
[1755548144927,150.81,183.7,183.65,0.03787159]
[1755548145929,3.08,183.67,183.65,0.03787159]
[1755548146127,3.08,183.69,183.65,0.03787159]
[1755548146327,3.08,183.68,183.65,0.03787159]
[1755548146927,3.08,183.67,183.65,0.03787159]
[1755548147134,134.46,183.7,183.66,2.92]
[1755548147725,137.54,183.7,183.66,2.92]
[1755548149335,3.08,183.69,183.65,0.03787159]
[1755548149728,3.08,183.68,183.65,0.03787159]
[1755548151030,3.08,183.66,183.65,0.03787159]
[1755548159335,16.35,183.68,183.65,0.03787159]
[1755548159532,3.01,183.67,183.65,0.03787159]
[1755548160649,50.0,183.69,183.65,0.03787159]